bitfinex/quotes_ETHUSD_20250930
["timestamp","ask_amount","ask_price","bid_price","bid_amount"]
[1759267943073,0.001,4168.6,4168.5,3.90936236]
[1759267943273,0.001,4168.6,4168.5,6.66663236]
[1759267943572,0.001,4168.6,4168.5,9.06663236]
[1759267943776,0.001,4168.6,4168.5,10.09863236]
[1759267944099,0.001,4169.0,4168.9,3.43071428]
[1759267944272,0.001,4169.0,4168.9,25.14653621]
[1759267944448,0.001,4169.0,4168.9,27.97236307]
[1759267944654,0.001,4169.0,4168.9,26.89306007]
[1759267944853,0.001,4169.0,4168.9,11.05062107]
[1759267945258,0.001,4169.0,4168.9,29.26833407]
[1759267945455,0.001,4169.0,4168.9,27.08956277]
[1759267945685,0.001,4169.0,4168.9,26.85215577]
[1759267945880,0.001,4169.0,4168.9,27.70801207]
[1759267946179,0.001,4169.0,4168.9,27.78334607]
[1759267946473,0.001,4169.0,4168.9,26.92748977]
[1759267946676,0.001,4169.0,4168.9,25.98478477]
[1759267946975,0.001,4169.0,4168.9,26.82952077]
[1759267947175,0.001,4169.0,4168.9,27.68537707]
[1759267947476,0.001,4169.0,4168.9,26.82952077]
[1759267947684,0.001,4169.0,4168.9,19.03457477]
[1759267948093,0.001,4169.0,4168.9,26.99294077]
[1759267948305,0.001,4169.0,4168.9,20.22937677]
[1759267948784,0.001,4169.0,4168.9,5.68801949]
[1759267948960,0.001,4169.0,4168.9,11.64330377]
[1759267949162,0.001,4169.0,4168.9,13.50210677]
[1759267949362,0.001,4169.0,4168.9,9.27976477]
[1759267949872,0.001,4169.0,4168.9,12.37005077]
[1759267950196,0.001,4169.0,4168.9,12.37606477]
[1759267950687,4.192633,4169.0,4168.9,12.37606477]
[1759267951388,4.192633,4169.0,4168.9,12.37106477]
[1759267951603,4.192633,4169.0,4168.9,9.51676477]
[1759267952773,4.192633,4169.0,4168.9,9.51476477]
[1759267953867,4.192633,4169.0,4168.9,13.07100077]
[1759267954401,4.192633,4169.0,4168.9,13.92685707]
[1759267954596,4.192633,4169.0,4168.9,9.51476477]
[1759267954795,4.192633,4169.0,4168.9,11.60707077]
[1759267955000,4.192633,4169.0,4168.9,12.33799377]
[1759267955177,4.192633,4169.0,4168.9,14.83099377]
[1759267955793,4.192633,4169.0,4168.9,12.00776477]
[1759267956111,4.192633,4169.0,4168.9,17.37885477]
[1759267956285,4.192633,4169.0,4168.9,18.66263923]
[1759267956486,4.192633,4169.0,4168.9,12.54914923]
[1759267956893,4.192633,4169.0,4168.9,17.63008923]
[1759267957116,4.192633,4169.0,4168.9,15.38671623]
[1759267957917,0.001,4169.5,4169.4,2.63842663]
[1759267958116,0.001,4169.5,4169.4,12.30096428]
[1759267958324,0.001,4169.5,4169.4,13.08706428]
[1759267958710,0.001,4169.5,4169.4,13.94472371]
[1759267959021,0.001,4169.5,4169.4,15.55980871]
[1759267960013,0.001,4169.5,4169.4,16.48124971]
[1759267960208,0.001,4169.5,4169.4,14.76654971]
[1759267960519,0.001,4169.5,4169.4,13.11859928]
[1759267960896,0.001,4169.5,4169.4,8.91424628]
[1759267961093,0.001,4169.5,4169.4,17.52251628]
[1759267961293,0.001,4169.5,4169.4,16.64167528]
[1759267962321,0.001,4169.5,4169.4,17.04047743]
[1759267962617,0.001,4169.5,4169.4,16.84257056]
[1759267963216,0.001,4169.5,4169.4,17.87781241]
[1759267963625,0.001,4169.5,4169.4,16.92609241]
[1759267963833,0.001,4169.5,4169.4,16.66459441]
[1759267964015,0.001,4169.5,4169.4,15.17121441]
[1759267964329,0.001,4169.5,4169.4,17.51707741]
[1759267964543,0.001,4169.5,4169.4,16.28660641]
[1759267965242,0.001,4169.5,4169.4,16.44023641]
[1759267965814,0.001,4169.5,4169.4,15.90672141]
[1759267966215,0.001,4169.5,4169.4,18.98617041]
[1759267966409,0.001,4169.5,4169.4,17.75304741]
[1759267966848,0.001,4169.5,4169.4,17.23018841]
[1759267967533,0.001,4169.5,4169.4,16.81387241]
[1759267967914,0.001,4169.5,4169.4,11.45687241]
[1759267968116,0.001,4169.5,4169.4,16.80387241]
[1759267968315,0.001,4169.5,4169.4,19.65117125]
[1759267968524,0.001,4169.5,4169.4,17.12474141]
[1759267968816,0.001,4169.9,4169.8,2.63819655]
[1759267969016,0.001,4169.9,4169.8,25.27026451]
[1759267969330,0.001,4169.9,4169.8,25.77762355]
[1759267969531,0.001,4169.9,4169.8,26.53856473]
[1759267969838,0.001,4169.9,4169.8,24.81852655]
[1759267970035,0.001,4169.9,4169.8,27.21583198]
[1759267970343,0.001,4169.9,4169.8,28.20503698]
[1759267970569,0.001,4169.9,4169.8,27.30205898]
[1759267971365,0.001,4169.9,4169.8,29.00028798]
[1759267972036,0.001,4169.9,4169.8,28.50930598]
[1759267972362,0.4588,4171.1,4171.0,2.39750659]
[1759267972554,0.5588,4171.1,4171.0,5.24350659]
[1759267972745,0.5588,4171.1,4171.0,5.36350659]
[1759267973157,0.5588,4171.1,4171.0,6.22365345]
[1759267973368,0.5588,4171.1,4171.0,8.98954845]
[1759267973530,0.5588,4171.1,4171.0,9.68341047]
[1759267973735,0.5588,4171.1,4171.0,6.91751547]
[1759267973938,0.5588,4171.1,4171.0,9.40539147]
[1759267974196,0.5588,4171.1,4171.0,9.16943847]
[1759267974743,0.5588,4171.1,4171.0,6.91751547]
[1759267975369,0.5588,4171.1,4171.0,6.05736861]
[1759267975938,0.5588,4171.1,4171.0,8.45736861]
[1759267976339,0.5588,4171.1,4171.0,11.04529861]
[1759267976750,0.5588,4171.1,4171.0,8.45736861]
[1759267977151,0.5588,4171.1,4171.0,9.31751547]
[1759267977351,0.5588,4171.1,4171.0,8.45736861]
[1759267977765,0.4588,4171.1,4171.0,8.45736861]
[1759267978172,0.4588,4171.1,4171.0,10.87331661]
[1759267978377,0.1,4171.3,4171.2,2.39739163]
[1759267978584,0.12,4171.5,4171.2,5.24039163]
[1759267979077,0.5588,4171.4,4171.3,0.24]
[1759267979252,0.5588,4171.4,4171.2,2.843]
[1759267979452,0.5588,4171.3,4171.2,2.843]
[1759267980382,0.001,4173.0,4170.9,0.86014686]
[1759267980556,0.5588,4171.3,4171.0,5.329]
[1759267980754,0.001,4173.0,4171.0,5.329]
[1759267980755,2.95619163,4171.2,4171.1,2.836]
[1759267981354,0.5588,4171.2,4171.1,2.836]
[1759267982178,2.95619163,4171.2,4170.4,3.25798119]
[1759267982379,0.5588,4171.1,4170.5,8.58914686]
[1759267982580,0.5588,4171.0,4170.6,2.39773653]
[1759267982784,0.5588,4170.9,4170.7,3.076]
[1759267982984,0.5588,4170.8,4170.7,5.236]
[1759267983278,0.5588,4170.8,4170.7,7.87367904]
[1759267983466,0.5588,4170.8,4170.7,5.476]
[1759267983667,0.4588,4170.8,4170.7,7.87367904]
[1759267983875,0.1,4171.2,4170.8,2.39761141]
[1759267984075,0.4588,4171.1,4170.9,2.834]
[1759267984585,10.5588,4171.3,4170.9,2.834]
[1759267984761,10.0,4171.3,4170.9,2.834]
[1759267984960,0.4588,4171.2,4170.9,2.834]
[1759267985165,0.5588,4171.2,4170.9,2.834]
[1759267986800,0.1,4171.2,4170.9,2.834]
[1759267986956,0.5588,4171.1,4170.9,2.834]
[1759267987894,10.0,4171.3,4170.9,2.834]
[1759267988051,10.5588,4171.3,4170.9,2.834]
[1759267988686,0.4588,4171.2,4171.1,0.64534821]
[1759267988960,10.0,4171.3,4171.1,3.47634821]
[1759267989684,10.0,4171.3,4171.2,0.64534821]
[1759267990461,10.12,4171.3,4171.2,0.64534821]
[1759267990784,10.12,4171.3,4171.1,2.831]
[1759267991784,10.0,4171.3,4171.2,2.39739163]
[1759267992392,10.0,4171.3,4171.2,3.25753849]
[1759267992693,10.001,4171.3,4171.2,3.25753849]
[1759267993987,10.001,4171.3,4171.2,0.86014686]
[1759267994499,10.001,4171.3,4171.2,3.25753849]
[1759267994705,10.001,4171.3,4171.2,0.86014686]
[1759267994901,10.001,4171.3,4171.1,5.22842996]
[1759267995205,10.001,4171.3,4171.2,2.39739163]
[1759267995806,10.001,4171.3,4171.1,5.22843349]
[1759267995967,10.001,4171.3,4171.2,2.39739163]
[1759267997366,10.001,4171.3,4171.1,6.5186609]
[1759267997590,10.001,4171.3,4171.2,2.39739163]
[1759267998568,10.001,4171.3,4171.1,6.51864967]
[1759267998793,10.001,4171.3,4171.2,1.2902203]
[1759267998993,10.001,4171.3,4171.2,3.68761193]
[1759267999228,10.001,4171.3,4171.2,1.2902203]
[1759267999574,10.001,4171.3,4171.2,3.68761193]
[1759268000077,10.001,4171.3,4171.2,1.2902203]
[1759268000942,10.001,4171.3,4171.2,3.68761193]
[1759268001123,10.547,4171.3,4171.2,6.16982608]
[1759268002395,10.547,4171.3,4171.2,0.86182608]
[1759268002628,10.547,4171.3,4171.2,6.16882608]
[1759268002931,12.94433416,4171.3,4171.2,6.16882608]
[1759268003225,10.547,4171.3,4171.2,6.16882608]
[1759268006224,10.001,4171.3,4171.2,6.16882608]
[1759268006602,10.547,4171.3,4171.2,6.16882608]
[1759268006803,10.001,4171.3,4171.2,6.16882608]
[1759268009346,10.001,4171.3,4171.2,6.40882608]
[1759268009551,10.001,4171.3,4171.2,6.16882608]
[1759268009724,10.001,4171.3,4171.2,5.307]
[1759268010244,10.001,4171.3,4171.2,5.9988]
[1759268010731,10.001,4171.3,4171.2,7.2890203]
[1759268011652,10.001,4171.3,4171.2,5.9988]
[1759268014046,10.001,4171.3,4171.2,5.307]
[1759268014347,10.001,4171.3,4171.2,6.5972203]
[1759268014530,10.001,4171.3,4171.2,6.8346203]
[1759268014732,10.001,4171.3,4171.2,7.2890203]
[1759268014936,10.001,4171.3,4171.2,9.68641193]
[1759268015854,10.001,4171.3,4171.2,7.2890203]
[1759268016053,10.001,4171.3,4171.2,11.0646203]
[1759268018539,10.001,4171.3,4171.2,9.7744]
[1759268018862,10.001,4171.3,4171.2,5.5444]
[1759268020075,10.001,4171.3,4171.2,5.9988]
[1759268027383,10.001,4171.3,4171.2,0.6918]
[1759268027696,10.001,4171.3,4171.2,5.9818]
[1759268028260,10.001,4171.3,4171.2,5.5274]
[1759268028671,10.001,4171.3,4171.2,5.9722]
[1759268029594,10.001,4171.3,4171.2,5.5274]
[1759268037416,10.001,4171.3,4171.2,5.9729]
[1759268038132,10.001,4171.3,4171.2,8.37029163]
[1759268038440,10.001,4171.3,4171.2,5.9729]
[1759268041619,10.001,4171.3,4171.2,5.29]
[1759268042056,10.001,4171.3,4171.0,0.12]
[1759268042345,10.001,4171.3,4171.2,1.29390756]
[1759268042518,10.001,4171.3,4171.2,6.58390756]
[1759268042840,10.4673,4171.3,4171.2,6.58390756]
[1759268043007,10.001,4171.3,4171.2,6.58290756]
[1759268044243,10.001,4171.3,4171.2,5.5271]
[1759268044414,10.001,4171.3,4171.2,5.9719]
[1759268044614,10.001,4171.3,4171.2,5.5271]
[1759268045012,10.001,4171.3,4171.2,5.289]
[1759268045817,10.001,4171.3,4171.2,5.5271]
[1759268046942,10.001,4171.3,4171.2,0.2381]
[1759268047147,10.001,4171.3,4171.2,5.5271]
[1759268048623,10.001,4171.3,4171.2,0.2381]
[1759268048854,10.001,4171.3,4171.2,5.5271]
[1759268049384,10.001,4171.3,4171.2,5.289]
[1759268051954,10.001,4171.3,4171.1,2.4]
[1759268052123,10.001,4171.3,4171.0,0.12]
[1759268052327,10.001,4171.3,4170.8,2.4]
[1759268052328,0.12,4171.1,4170.8,1.29384706]
[1759268052667,2.39750659,4171.0,4170.9,6.15169702]
[1759268052847,2.96380659,4171.0,4170.9,5.289]
[1759268053053,3.80362548,4171.0,4170.9,5.289]
[1759268053257,3.80362548,4171.0,4170.9,5.93548846]
[1759268053258,4.63427421,4171.0,4170.9,5.93548846]
[1759268053661,4.63427421,4171.0,4170.9,5.289]
[1759268058073,4.62897421,4171.0,4170.9,5.289]
[1759268059538,2.39773653,4170.6,4170.5,0.64648846]
[1759268059772,2.51773653,4170.6,4170.5,5.93648846]
[1759268060156,3.23755542,4170.6,4170.5,5.93648846]
[1759268063952,3.23755542,4170.6,4170.5,0.64648846]
[1759268064153,3.23755542,4170.6,4170.5,5.93648846]
[1759268066357,3.23755542,4170.6,4170.5,5.93548846]
[1759268067153,3.80107396,4170.6,4170.5,0.64648846]
[1759268067357,4.36207396,4170.6,4170.5,5.289]
[1759268067565,4.36307396,4170.6,4170.5,5.289]
[1759268067765,4.36307396,4170.6,4170.0,0.64648846]
[1759268067766,2.39802402,4170.1,4170.0,0.64648846]
[1759268067967,2.95902402,4170.1,4170.0,5.93548846]
[1759268068183,2.95902402,4170.1,4169.8,0.002]
[1759268068184,2.39813904,4169.9,4169.8,0.002]
[1759268068390,2.39813904,4169.9,4169.8,5.291]
[1759268068609,2.95913904,4169.9,4169.8,5.291]
[1759268068985,3.67917216,4169.9,4169.8,5.291]
[1759268069412,3.67917216,4169.9,4169.8,0.002]
[1759268069704,4.33174992,4169.9,4169.8,5.291]
[1759268070173,4.33174992,4169.9,4169.8,0.002]
[1759268070494,4.33174992,4169.9,4169.8,5.291]
[1759268072713,5.12374992,4169.9,4169.8,5.291]
[1759268073910,2.3983691,4169.5,4169.4,0.002]
[1759268074110,2.3983691,4169.5,4169.4,2.495]
[1759268074318,2.9593691,4169.5,4169.4,2.495]
[1759268075206,2.9593691,4169.5,4169.4,5.291]
[1759268075370,3.67952148,4169.5,4169.4,5.291]
[1759268075574,3.56710294,4169.5,4169.4,5.291]
[1759268076097,0.72015238,4169.5,4169.4,5.291]
[1759268076297,2.39779402,4170.5,4169.5,2.64]
[1759268076503,2.39801196,4170.2,4169.6,4.37287157]
[1759268076807,2.39801196,4170.2,4169.7,0.6664]
[1759268077008,2.39801196,4170.2,4169.8,0.6664]
[1759268077219,2.39796771,4170.2,4169.9,3.4624]
[1759268077529,2.39796771,4170.2,4170.0,0.6664]
[1759268077922,2.39791575,4170.3,4170.1,0.6664]
[1759268078234,2.39791575,4170.3,4170.2,3.4624]
[1759268078431,2.51791575,4170.3,4170.2,3.4624]
[1759268080434,2.51791575,4170.3,4170.2,5.5159]
[1759268080839,2.51791575,4170.3,4170.2,5.9554]
[1759268081535,2.39755292,4171.0,4170.3,0.24]
[1759268081536,2.39751161,4171.0,4170.3,0.24]
[1759268081712,2.39751161,4171.0,4170.4,2.796]
[1759268081917,0.001,4171.1,4170.4,2.796]
[1759268081918,0.001,4171.1,4170.4,5.84033855]
[1759268082124,0.001,4171.1,4170.5,0.02397794]
[1759268082431,0.001,4171.1,4170.5,1.45501566]
[1759268082637,0.001,4171.1,4170.5,2.84347086]
[1759268082834,0.001,4171.1,4170.5,5.24126488]
[1759268083039,0.001,4171.1,4170.5,7.61728694]
[1759268083333,0.001,4171.1,4170.5,8.47998396]
[1759268083534,0.001,4171.1,4170.5,7.61728694]
[1759268084039,0.001,4171.1,4170.5,10.06946394]
[1759268084450,0.001,4171.1,4170.5,7.90966894]
[1759268084642,0.001,4171.1,4170.5,11.335435]
[1759268084936,0.001,4171.1,4170.5,10.04158794]
[1759268085140,0.001,4171.1,4170.5,10.47515994]
[1759268085318,0.001,4171.1,4170.5,10.06663694]
[1759268085519,0.001,4171.1,4171.0,2.39750659]
[1759268085708,1.11441642,4171.3,4171.2,2.39739163]
[1759268085913,1.11441642,4171.3,4171.2,8.62004754]
[1759268086158,1.11441642,4171.3,4171.2,15.70381765]
[1759268086341,1.11441642,4171.3,4171.2,15.47604443]
[1759268086519,0.001,4171.8,4171.7,2.39710429]
[1759268086721,0.001,4171.8,4171.7,8.09550408]
[1759268086921,0.001,4171.8,4171.7,10.96662204]
[1759268087124,0.001,4171.8,4171.7,11.06254541]
[1759268088007,0.001,4171.8,4171.7,8.87875641]
[1759268088229,0.001,4171.8,4171.7,11.35901541]
[1759268088430,0.001,4171.8,4171.7,12.21493713]
[1759268088625,0.001,4171.8,4171.7,11.15047641]
[1759268088842,0.001,4171.8,4171.7,4.54257384]
[1759268089138,0.001,4172.2,4171.9,2.39698938]
[1759268089339,0.001,4172.2,4172.1,3.04148093]
[1759268089837,0.001,4172.2,4172.1,6.1496554]
[1759268090036,0.001,4172.2,4172.1,9.32675347]
[1759268090244,0.001,4172.2,4172.1,9.13513447]
[1759268090610,0.001,4172.2,4172.1,9.99044237]
[1759268090831,0.001,4172.2,4172.1,11.86577985]
[1759268091072,0.001,4172.2,4172.1,9.32320185]
[1759268091255,0.001,4172.5,4172.1,9.32320185]
[1759268091256,0.001,4172.5,4172.4,3.18870213]
[1759268091455,0.001,4172.5,4172.4,15.18545015]
[1759268091658,0.001,4172.5,4172.4,15.99278313]
[1759268091854,0.001,4172.5,4172.4,18.48599123]
[1759268092056,0.001,4172.5,4172.4,19.12646135]
[1759268092257,0.001,4172.5,4172.4,19.78571723]
[1759268092456,0.001,4172.5,4172.4,14.19921023]
[1759268094551,0.001,4172.5,4172.4,18.80432623]
[1759268094755,0.001,4172.5,4172.4,19.09670823]
[1759268094950,0.001,4172.5,4172.4,19.73717835]
[1759268095151,0.001,4172.5,4172.4,20.00321601]
[1759268095557,0.001,4172.5,4172.4,27.68227101]
[1759268095776,0.001,4172.5,4172.4,26.93468001]
[1759268096280,0.001,4172.5,4172.4,26.29420989]
[1759268096577,0.001,4172.5,4172.4,14.75762989]
[1759268096776,0.001,4172.5,4172.4,26.22056989]
[1759268097656,0.001,4172.5,4172.4,28.34847189]
[1759268097852,0.001,4172.5,4172.4,28.98894201]
[1759268098054,0.001,4173.0,4172.4,28.98894201]
[1759268098055,0.001,4173.0,4172.9,3.18841496]
[1759268098254,0.001,4173.0,4172.9,21.58977268]
[1759268098461,0.001,4173.0,4172.9,26.14848454]
[1759268098664,0.001,4173.0,4172.9,29.19326254]
[1759268099185,0.001,4173.0,4172.9,29.4593002]
[1759268099679,0.001,4173.0,4172.9,27.7159962]
[1759268099868,0.001,4173.0,4172.9,24.6351922]
[1759268100072,0.001,4173.0,4172.9,23.7483362]
[1759268100678,0.001,4173.0,4172.9,25.7697792]
[1759268101264,0.001,4173.0,4172.9,14.27453654]
[1759268101485,0.001,4173.0,4172.9,14.74853654]
[1759268101686,0.001,4173.0,4172.9,26.08721154]
[1759268102175,0.001,4173.0,4172.9,25.58133754]
[1759268102682,0.001,4173.0,4172.9,28.22930554]
[1759268103283,0.001,4173.0,4172.9,25.60674754]
[1759268103482,2.39735753,4173.0,4172.9,0.12]
[1759268103682,2.95215753,4173.0,4172.9,5.283]
[1759268103885,0.5558,4173.0,4172.9,5.283]
[1759268104184,2.95215753,4173.0,4172.9,5.283]
[1759268105488,2.95215753,4173.0,4172.9,2.491]
[1759268105822,2.95215753,4173.0,4172.9,5.283]
[1759268105823,3.48700146,4173.0,4172.9,5.283]
[1759268107283,1.09064393,4173.0,4172.1,0.002]
[1759268107524,1.81006752,4173.0,4172.1,0.002]
[1759268107740,2.39641496,4172.9,4172.2,5.283]
[1759268107883,1.81006752,4173.0,4172.2,5.283]
[1759268107884,2.3966974,4172.5,4172.2,5.283]
[1759268108083,0.5548,4172.4,4172.2,5.283]
[1759268108292,2.39665525,4172.5,4172.2,5.283]
[1759268108510,0.5548,4172.4,4172.2,5.283]
[1759268109119,0.5548,4172.3,4172.2,7.683]
[1759268109318,0.5548,4172.3,4172.2,2.4]
[1759268109546,2.95155958,4172.3,4172.2,2.491]
[1759268109725,3.48638394,4172.3,4172.2,5.283]
[1759268110227,3.48638394,4172.3,4172.1,0.002]
[1759268110228,2.39681702,4172.2,4172.1,0.002]
[1759268110432,2.39681702,4172.2,4172.1,5.285]
[1759268110602,2.95161702,4172.2,4172.1,5.285]
[1759268111629,0.5663,4172.2,4172.1,5.285]
[1759268112514,0.001,4173.0,4172.1,5.285]
[1759268112717,2.39671074,4172.4,4172.1,5.285]
[1759268112907,0.5663,4172.7,4172.1,5.285]
[1759268113226,2.96287295,4172.7,4172.1,5.285]
[1759268113442,2.96287295,4172.7,4172.1,5.92319174]
[1759268113616,0.12,4172.3,4172.1,3.03706174]
[1759268113811,0.5663,4172.2,4172.1,0.002]
[1759268114136,2.96311702,4172.2,4172.1,5.286]
[1759268114714,0.5663,4172.2,4172.1,5.286]
[1759268115117,2.96311702,4172.2,4172.1,5.92419174]
[1759268115316,0.5663,4172.2,4172.1,5.92419174]
[1759268115529,2.96311702,4172.2,4172.1,0.64019174]
[1759268115843,2.96311702,4172.2,4172.1,5.286]
[1759268117111,2.96311702,4172.2,4172.1,2.494]
[1759268117410,2.96311702,4172.2,4172.1,5.286]
[1759268118516,2.96311702,4172.2,4172.1,0.002]
[1759268118717,2.39681702,4172.2,4172.1,5.286]
[1759268119024,2.39667227,4172.5,4172.1,5.5249]
[1759268119222,2.39670718,4172.4,4172.1,5.9696]
[1759268119435,0.001,4173.0,4172.1,5.9696]
[1759268119640,2.39659045,4172.6,4172.2,0.63819174]
[1759268119840,2.39648253,4172.8,4172.3,2.792]
[1759268120046,0.001,4173.0,4172.3,2.792]
[1759268120047,0.001,4173.0,4172.3,3.45277917]
[1759268120226,0.001,4173.0,4172.5,0.63819174]
[1759268120429,0.001,4173.0,4172.6,0.63819174]
[1759268120655,0.001,4173.0,4172.7,5.284]
[1759268120862,0.001,4173.0,4172.9,0.63819174]
[1759268121066,0.001,4173.0,4172.9,3.43019174]
[1759268122961,0.001,4173.0,4172.9,3.66909174]
[1759268123662,0.001,4173.0,4172.9,3.0309]
[1759268123872,0.121,4173.0,4172.9,3.0309]
[1759268124260,0.001,4173.0,4172.9,3.95284125]
[1759268124475,0.001,4173.0,4172.9,4.39754125]
[1759268124762,0.001,4173.0,4172.9,1.60554125]
[1759268124963,0.001,4173.0,4172.9,5.9676]
[1759268126448,0.001,4173.0,4172.9,8.36401496]
[1759268127758,0.001,4173.0,4172.9,5.9676]
[1759268128070,0.001,4173.0,4172.9,8.36401496]
[1759268128652,0.001,4173.0,4172.9,5.9676]
[1759268128854,0.001,4173.0,4172.9,8.36401496]
[1759268129050,0.001,4173.0,4172.9,9.96059948]
[1759268129258,0.001,4173.0,4172.9,7.56418452]
[1759268129457,0.001,4173.0,4172.9,10.81590738]
[1759268131877,0.001,4173.0,4172.9,14.19059948]
[1759268132783,0.001,4173.0,4172.8,1.28575728]
[1759268132784,2.39735753,4173.0,4172.8,1.28575728]
[1759268133078,2.39658725,4172.6,4172.5,0.002]
[1759268133277,2.39658725,4172.6,4172.5,2.793]
[1759268133658,2.73618725,4172.6,4172.5,2.793]
[1759268134382,3.24945321,4172.6,4172.5,2.793]
[1759268135482,3.24945321,4172.6,4171.6,0.002]
[1759268135686,2.39710429,4171.7,4171.6,0.002]
[1759268135897,2.39710429,4171.7,4171.6,2.793]
[1759268135898,2.63681472,4171.7,4171.6,2.793]
[1759268136102,2.97641472,4171.7,4171.6,2.793]
[1759268136804,2.97641472,4171.7,4171.6,2.796]
[1759268140512,2.97641472,4171.7,4171.2,1e-08]
[1759268140513,3.18933416,4171.3,4171.2,1e-08]
[1759268140672,2.39808153,4170.0,4169.9,2.492]
[1759268141517,2.3983691,4169.5,4169.4,0.002]
[1759268141808,2.39829582,4169.7,4169.4,5.321]
[1759268142209,2.39780477,4170.5,4169.4,5.321]
[1759268142210,2.39780477,4170.5,4169.5,0.7115]
[1759268142413,0.23978048,4170.4,4169.6,0.2438]
[1759268142596,0.3396,4170.8,4169.7,2.826]
[1759268142597,2.39824239,4169.8,4169.7,2.826]
[1759268142773,2.39815444,4169.9,4169.7,3.5375]
[1759268143103,2.39802335,4170.2,4169.8,0.7115]
[1759268143468,0.12,4169.9,4169.4,0.002]
[1759268143648,2.39808153,4170.0,4169.9,2.492]
[1759268143850,2.39808153,4170.0,4169.9,5.338]
[1759268144051,2.51808153,4170.0,4169.9,5.338]
[1759268145321,2.51808153,4170.0,4169.6,0.7115]
[1759268145670,2.51808153,4170.0,4169.4,0.002]
[1759268145671,2.39808153,4170.0,4169.9,2.493]
[1759268145839,2.73732544,4170.7,4169.7,0.7115]
[1759268145840,2.39818038,4169.9,4169.7,0.7115]
[1759268146161,2.39779402,4170.5,4169.8,5.5818]
[1759268146466,1.11694408,4171.6,4169.9,0.7115]
[1759268146668,2.39727669,4171.4,4170.0,2.844]
[1759268146835,2.39802402,4170.1,4170.0,2.844]
[1759268148428,0.3396,4170.8,4169.6,0.2438]
[1759268148429,2.39778159,4170.6,4169.6,0.2438]
[1759268148632,2.39802402,4170.1,4170.0,2.493]
[1759268148861,2.39802402,4170.1,4170.0,5.356]
[1759268149263,2.39802402,4170.1,4170.0,5.5998]
[1759268149574,2.39793152,4170.3,4170.0,6.0675]
[1759268149770,0.3396,4171.1,4170.1,0.7115]
[1759268149979,3.18990902,4170.3,4170.2,5.355]
[1759268150160,2.71689992,4170.3,4170.2,5.355]
[1759268152987,2.3983691,4169.5,4169.4,0.002]
[1759268153542,2.3983691,4169.5,4169.4,5.37]
[1759268156697,2.5183691,4169.5,4169.4,5.37]
[1759268157670,2.5183691,4169.5,4169.4,0.002]
[1759268157869,2.5183691,4169.5,4169.4,5.365]
[1759268160558,2.5183691,4169.5,4169.4,7.765]
[1759268160754,2.39756686,4170.9,4169.4,7.765]
[1759268160755,2.39774414,4170.6,4169.4,7.765]
[1759268160961,2.39843906,4171.2,4169.5,0.7115]
[1759268161172,2.39843906,4171.2,4169.4,7.765]
[1759268161173,2.39814775,4169.9,4169.6,3.5755]
[1759268161399,2.39814775,4169.9,4169.7,0.7115]
[1759268161562,2.39763778,4170.8,4169.8,2.867]
[1759268161768,2.39750917,4171.0,4169.9,0.7115]
[1759268161967,0.3396,4171.3,4170.0,3.5775]
[1759268162204,0.51378873,4171.1,4170.1,2.866]
[1759268162384,2.39735444,4171.3,4170.2,0.7115]
[1759268162584,2.39722928,4171.5,4170.3,2.866]
[1759268162784,2.39768764,4170.7,4170.3,3.5775]
[1759268163015,2.39768764,4170.7,4170.4,0.7115]
[1759268163315,2.39760541,4170.9,4170.5,0.7115]
[1759268163516,2.39760541,4170.9,4170.6,3.5765]
[1759268163517,2.39756447,4170.9,4170.6,3.5765]
[1759268163716,2.39751609,4171.0,4170.7,3.5765]
[1759268163892,2.39759009,4170.9,4170.8,0.7115]
[1759268164233,2.39752476,4171.0,4170.8,0.7115]
[1759268164410,0.001,4171.2,4170.9,0.7115]
[1759268164618,0.001,4171.2,4171.1,2.4]
[1759268164985,0.001,4171.2,4171.1,5.50894911]
[1759268165323,0.001,4171.2,4171.1,6.36820497]
[1759268165528,0.001,4171.2,4171.1,7.69572784]
[1759268165683,0.001,4171.2,4171.1,6.83647198]
[1759268167315,0.001,4171.2,4171.1,8.12411441]
[1759268168081,0.001,4171.2,4171.1,6.83647198]
[1759268168287,0.001,4171.2,4171.1,7.62847198]
[1759268168712,2.39839163,4171.2,4171.0,1.28676746]
[1759268169018,2.73799163,4171.2,4171.1,2.887]
[1759268169222,2.73799163,4171.2,4171.1,2.886]
[1759268169517,3.49124859,4171.2,4171.1,2.886]
[1759268169938,3.15164859,4171.2,4171.1,2.886]
[1759268170635,3.49124859,4171.2,4171.1,2.886]
[1759268170826,3.61124859,4171.2,4171.1,2.886]
[1759268171638,2.39808153,4170.0,4169.9,0.85807032]
[1759268171843,2.3983691,4169.5,4169.4,0.002]
[1759268172059,2.3983691,4169.5,4169.4,5.303]
[1759268172541,2.3983691,4169.5,4169.4,5.302]
[1759268174028,2.3983691,4169.5,4169.4,5.3]
[1759268174832,2.3983691,4169.5,4169.4,2.402]
[1759268175011,2.3983691,4169.5,4169.4,2.903]
[1759268175012,2.87803342,4169.5,4169.4,2.903]
[1759268175211,2.87803342,4169.5,4169.4,5.396]
[1759268175615,2.87803342,4169.5,4169.4,0.002]
[1759268175845,2.87803342,4169.5,4169.0,0.002]
[1759268175846,2.39859921,4169.1,4169.0,0.002]
[1759268176049,2.39859921,4169.1,4169.0,5.03]
[1759268176204,2.87831126,4169.1,4169.0,5.03]
[1759268176536,2.39859921,4169.1,4169.0,5.03]
[1759268176740,2.39859921,4169.1,4169.0,5.2783]